bitfinex/quotes_ETHUSD_20250715
["timestamp","ask_amount","ask_price","bid_price","bid_amount"]
[1752551575133,0.7188,2952.9,2952.7,3.66288538]
[1752551575293,1.0239,2952.8,2952.4,4.3138318]
[1752551575494,0.4739,2952.8,2952.4,4.31387489]
[1752551575695,0.4739,2952.8,2952.5,3.3869602]
[1752551575930,3.386064,2953.3,2952.5,3.3869602]
[1752551575931,6.0553,2953.4,2953.1,3.38620119]
[1752551576142,5.9277,2953.4,2953.0,3.38638672]
[1752551576344,3.38621301,2953.2,2952.7,4.14267629]
[1752551576499,0.55,2953.1,2952.8,3.38658067]
[1752551576700,0.4739,2953.0,2952.8,3.38658067]
[1752551576937,0.55,2952.8,2952.7,0.1688]
[1752551577237,1.0239,2952.8,2952.6,3.38681464]
[1752551577442,1.0239,2952.8,2952.7,3.38673078]
[1752551577793,1.0239,2952.8,2952.5,4.14292757]
[1752551578133,0.55,2952.6,2952.4,0.002]
[1752551578925,0.55,2952.6,2952.4,3.38906602]
[1752551580349,0.55,2952.6,2952.4,0.002]
[1752551580706,1.0239,2952.6,2952.4,0.002]
[1752551580911,4.4108602,2952.5,2952.4,0.002]
[1752551581418,5.2041602,2952.5,2952.4,0.002]
[1752551582147,10.4881602,2952.5,2952.4,0.002]
[1752551582640,20.4881602,2952.5,2952.4,0.002]
[1752551582843,20.9881602,2952.5,2952.4,0.002]
[1752551583603,15.7041602,2952.5,2952.4,0.002]
[1752551583804,20.9871602,2952.5,2952.4,0.002]
[1752551584351,20.9881602,2952.5,2952.4,0.002]
[1752551585661,12.3172,2952.5,2952.4,0.002]
[1752551585868,20.9881602,2952.5,2952.4,0.002]
[1752551587765,20.9871602,2952.5,2952.4,0.002]
[1752551592531,20.9871602,2952.5,2952.4,1e-08]
[1752551594237,25.59433489,2952.5,2952.4,1e-08]
[1752551594461,30.87733489,2952.5,2952.4,1e-08]
[1752551594869,15.7041602,2952.5,2952.4,1e-08]
[1752551595170,20.9871602,2952.5,2952.4,1e-08]
[1752551598673,15.1541602,2952.5,2952.4,1e-08]
[1752551598900,20.4361602,2952.5,2952.4,1e-08]
[1752551599175,22.27261039,2952.5,2952.4,1e-08]
[1752551602674,25.83861039,2952.5,2952.4,1e-08]
[1752551602930,4.75317817,2951.7,2951.6,0.002]
[1752551603041,20.03517817,2951.7,2951.6,0.002]
[1752551603374,21.72661963,2951.7,2951.6,0.002]
[1752551607477,16.44461963,2951.7,2951.6,0.002]
[1752551607693,15.07931963,2951.7,2951.6,0.002]
[1752551607902,19.93231963,2951.7,2951.6,0.002]
[1752551608557,16.54444146,2951.7,2951.6,0.7742]
[1752551608875,1.26344146,2951.7,2951.6,4.16219295]
[1752551609077,6.54344146,2951.7,2951.6,4.91982605]
[1752551609283,7.09344146,2951.7,2951.6,1.5318331]
[1752551609654,6.54344146,2951.7,2951.6,1.5294331]
[1752551609987,7.09344146,2951.7,2951.6,4.16219295]
[1752551610685,1.26344146,2951.7,2951.6,4.16459295]
[1752551610885,6.54344146,2951.7,2951.6,4.16459295]
[1752551611073,6.54344146,2951.7,2951.6,0.7742]
[1752551611276,7.09344146,2951.7,2951.6,0.7742]
[1752551611477,11.52942924,2951.7,2951.6,0.002]
[1752551612161,12.71542924,2951.7,2951.6,0.002]
[1752551612358,16.24942924,2951.7,2951.6,0.002]
[1752551612565,1.81344146,2951.7,2951.6,0.7572]
[1752551612765,1.26344146,2951.7,2951.6,4.14519295]
[1752551612961,1.26104146,2951.7,2951.6,14.24044756]
[1752551613175,5.28,2952.1,2952.0,3.38753387]
[1752551613376,5.28,2952.1,2952.0,4.87035173]
[1752551613688,5.28,2952.1,2952.0,5.03915173]
[1752551613991,5.28,2952.1,2952.0,0.8053]
[1752551614557,0.1688,2952.2,2952.0,0.8053]
[1752551614752,5.279,2952.1,2952.0,0.8053]
[1752551615054,5.279,2952.1,2951.7,0.8053]
[1752551615055,0.55,2952.0,2951.7,0.8053]
[1752551615381,0.7188,2951.8,2951.7,0.8053]
[1752551615566,4.10656339,2951.8,2951.7,0.8053]
[1752551615772,0.7188,2951.8,2951.6,0.002]
[1752551616086,5.9968,2951.7,2951.6,0.002]
[1752551616390,9.38467817,2951.7,2951.6,0.002]
[1752551616552,5.9968,2951.7,2951.6,0.002]
[1752551617590,5.278,2951.7,2951.6,0.42077458]
[1752551617790,5.278,2951.7,2951.6,4.18679295]
[1752551618499,5.278,2951.7,2951.6,0.7988]
[1752551618675,5.278,2951.7,2951.6,4.18679295]
[1752551618860,5.278,2951.7,2951.6,0.7988]
[1752551620768,5.278,2951.7,2951.6,4.18679295]
[1752551621104,5.278,2951.7,2951.6,5.43737063]
[1752551621300,5.828,2951.7,2951.6,0.7988]
[1752551621607,5.9968,2951.7,2951.6,0.7988]
[1752551621959,19.21587817,2951.7,2951.6,0.002]
[1752551622167,19.64467817,2951.7,2951.6,0.002]
[1752551623502,19.64367817,2951.7,2951.6,0.002]
[1752551623965,21.2525108,2951.7,2951.6,0.002]
[1752551624160,19.64367817,2951.7,2951.6,0.002]
[1752551627405,20.45077817,2951.7,2951.6,0.002]
[1752551628377,20.45077817,2951.7,2951.6,1e-08]
[1752551628578,14.68819295,2951.6,2951.5,1e-08]
[1752551628910,15.11699295,2951.6,2951.5,1e-08]
[1752551634090,20.39199295,2951.6,2951.5,1e-08]
[1752551635517,14.76773734,2951.3,2951.2,0.002]
[1752551635685,20.04273734,2951.3,2951.2,0.002]
[1752551635885,20.47153734,2951.3,2951.2,0.002]
[1752551636681,14.10725215,2951.2,2950.9,0.002]
[1752551636915,14.53605215,2951.2,2950.9,0.002]
[1752551637221,14.53605215,2951.2,2951.1,1e-08]
[1752551637379,15.36545215,2951.2,2951.1,1e-08]
[1752551637578,3.9386818,2951.0,2950.9,1e-08]
[1752551637784,29.93325649,2951.0,2950.9,1e-08]
[1752551638023,20.4718818,2951.0,2950.9,1e-08]
[1752551638711,30.36205649,2951.0,2950.9,1e-08]
[1752551639829,14.75575605,2950.5,2950.4,1e-08]
[1752551640027,20.03075605,2950.5,2950.4,1e-08]
[1752551640182,24.64627539,2950.2,2950.1,1e-08]
[1752551640383,29.92127539,2950.2,2950.1,1e-08]
[1752551640590,30.35007539,2950.2,2950.1,1e-08]
[1752551641932,25.07507539,2950.2,2950.1,1e-08]
[1752551642235,25.07507539,2950.2,2948.7,0.8102]
[1752551642236,0.55,2949.4,2948.7,0.8102]
[1752551642413,0.55,2949.1,2948.7,0.8102]
[1752551642610,5.825,2949.0,2948.7,0.8102]
[1752551642909,9.21597999,2949.0,2948.7,0.8102]
[1752551643216,5.825,2949.0,2948.7,0.8102]
[1752551644431,5.825,2949.0,2948.7,4.20150129]
[1752551644626,5.825,2949.0,2948.7,4.20149332]
[1752551644806,5.826,2949.0,2948.7,4.20149332]
[1752551645008,0.55,2949.0,2948.7,4.20149332]
[1752551645202,5.826,2949.0,2948.7,0.8102]
[1752551645927,19.21697999,2949.0,2948.7,0.8102]
[1752551646431,15.826,2949.0,2948.7,0.8102]
[1752551647099,19.21697999,2949.0,2948.7,0.8102]
[1752551647301,10.55,2949.0,2948.7,0.8102]
[1752551647601,15.826,2949.0,2948.7,0.8102]
[1752551648006,15.826,2949.0,2948.7,4.20142395]
[1752551648207,15.826,2949.0,2948.7,0.8102]
[1752551649933,19.21697999,2949.0,2948.7,0.8102]
[1752551650335,13.94097999,2949.0,2948.7,0.8102]
[1752551650537,19.21597999,2949.0,2948.7,0.8102]
[1752551650702,19.66287999,2949.0,2948.7,0.8102]
[1752551651750,15.825,2949.0,2948.7,0.8102]
[1752551652100,10.55,2949.0,2948.7,0.8102]
[1752551652301,5.275,2949.0,2948.9,3.39305814]
[1752551652521,5.4438,2949.0,2948.9,0.002]
[1752551652836,0.1688,2949.0,2948.9,3.39309498]
[1752551653041,5.9938,2949.0,2948.9,4.14599498]
[1752551654414,0.7188,2949.0,2948.9,4.14599498]
[1752551654634,13.39043714,2949.5,2949.0,3.39090525]
[1752551654635,10.0,2949.4,2949.0,3.39090525]
[1752551654838,5.4438,2949.3,2948.9,1.50861995]
[1752551655012,0.55,2949.2,2948.9,4.14591334]
[1752551655212,5.275,2949.1,2948.9,4.14591334]
[1752551655445,5.275,2949.1,2949.0,3.39097999]
[1752551655746,0.55,2949.0,2948.9,0.7549]
[1752551655920,5.825,2949.0,2948.9,0.7549]
[1752551656812,9.21597999,2949.0,2948.9,0.002]
[1752551657347,5.825,2949.0,2948.9,0.002]
[1752551657650,9.21597999,2949.0,2948.9,0.002]
[1752551658238,9.66287999,2949.0,2948.9,0.002]
[1752551659019,19.66287999,2949.0,2948.9,0.002]
[1752551660754,20.45207999,2949.0,2948.9,0.002]
[1752551662422,20.45207999,2949.0,2947.8,0.002]
[1752551662423,0.55,2947.9,2947.8,0.002]
[1752551662717,3.39304069,2947.3,2946.0,0.8064]
[1752551662942,0.55,2947.6,2946.8,0.8044]
[1752551663141,0.55,2947.6,2946.8,0.83833511]
[1752551663374,0.1696,2947.2,2946.8,0.83833511]
[1752551663654,0.1696,2947.7,2947.1,0.9847]
[1752551663878,0.1696,2947.7,2947.4,3.39279451]
[1752551664025,7.98581785,2947.9,2947.5,3.39263987]
[1752551664219,2.71181785,2947.9,2947.5,3.56223987]
[1752551664413,2.71181785,2947.9,2947.8,4.1430604]
[1752551665162,0.55,2947.8,2947.4,0.7507]
[1752551665374,0.55,2947.2,2946.9,0.7507]
[1752551665655,5.275,2947.1,2946.9,0.7507]
[1752551665964,8.66820439,2947.1,2946.9,0.7507]
[1752551666316,1.79604432,2947.6,2946.9,0.7507]
[1752551666515,5.275,2947.5,2946.9,0.7507]
[1752551666721,0.55,2947.1,2946.9,0.7507]
[1752551666927,3.3932813,2947.0,2946.9,0.7507]
[1752551667136,3.9432813,2947.0,2946.9,0.7507]
[1752551667333,0.55,2946.7,2946.5,0.7507]
[1752551667556,9.21874193,2946.6,2946.5,0.7507]
[1752551667759,3.39398233,2946.4,2946.1,0.7507]
[1752551667934,5.275,2946.3,2946.1,0.7507]
[1752551668518,0.55,2946.2,2946.1,0.7507]
[1752551669125,5.275,2946.3,2946.1,0.7507]
[1752551672358,3.94431791,2946.1,2946.0,0.002]
[1752551672677,0.55,2946.1,2946.0,0.002]
[1752551672882,5.826,2946.1,2946.0,0.002]
[1752551674582,20.49231791,2946.1,2945.8,0.002]
[1752551674766,13.94454835,2945.9,2945.8,0.002]
[1752551674941,19.24354835,2945.9,2945.8,0.002]
[1752551675144,10.55,2945.9,2945.8,0.002]
[1752551675344,15.854,2945.9,2945.8,0.002]
[1752551675654,19.24854835,2945.9,2945.8,0.002]
[1752551675859,19.69544835,2945.9,2945.8,0.002]
[1752551676366,16.3009,2945.9,2945.8,0.002]
[1752551676682,19.69544835,2945.9,2945.8,0.002]
[1752551677976,16.3009,2945.9,2945.8,0.002]
[1752551678388,19.69544835,2945.9,2945.8,0.002]
[1752551678952,0.55,2944.9,2944.8,0.8028]
[1752551679153,0.55,2944.7,2944.6,3.396047]
[1752551679353,0.1696,2944.8,2944.7,3.39593167]
[1752551679354,5.302,2944.8,2944.7,3.39593167]
[1752551679791,0.1696,2945.1,2945.0,4.19838573]
[1752551679954,5.303,2945.1,2945.0,0.8028]
[1752551680150,5.853,2945.1,2945.0,0.8028]
[1752551680350,0.55,2945.0,2944.6,0.1696]
[1752551680697,0.7196,2944.8,2944.4,0.8028]
[1752551680869,5.306,2944.7,2944.4,4.19906864]
[1752551681058,5.306,2944.7,2944.4,0.8028]
[1752551681786,5.306,2944.7,2944.4,4.19903501]
[1752551682089,5.306,2944.7,2944.4,0.8028]
[1752551682292,5.306,2944.7,2944.4,4.19903704]
[1752551682467,5.306,2944.7,2944.5,3.39613949]
[1752551682794,5.306,2944.7,2944.4,0.8028]
[1752551683089,5.306,2944.7,2944.4,4.19907663]
[1752551683267,5.306,2944.7,2944.4,0.8028]
[1752551683590,8.70200188,2944.7,2944.4,0.8028]
[1752551683758,5.306,2944.7,2944.4,0.8028]
[1752551684091,5.306,2944.7,2944.4,4.19898995]
[1752551684585,5.306,2944.7,2944.4,0.8028]
[1752551685083,5.306,2944.7,2944.4,4.19901868]
[1752551685290,0.1696,2944.8,2944.4,0.8028]
[1752551685456,5.299,2944.7,2944.6,3.396047]
[1752551685669,5.299,2944.7,2944.4,4.19903698]
[1752551685670,5.299,2944.7,2944.4,0.8028]
[1752551686090,0.55,2944.6,2944.4,0.8028]
[1752551686290,5.3,2944.5,2944.4,0.8028]
[1752551687304,5.3,2944.5,2944.1,4.39681258]
[1752551687709,5.3,2944.5,2943.2,10.0]
[1752551687710,0.9997,2944.4,2943.8,0.8306]
[1752551687875,0.55,2944.2,2943.8,1.0002]
[1752551688071,5.303,2944.1,2943.8,1.0002]
[1752551688475,5.303,2944.1,2943.8,4.39716345]
[1752551688677,5.303,2944.1,2943.8,1.0002]
[1752551689095,5.303,2944.1,2943.8,4.39710802]
[1752551689513,5.303,2944.1,2943.9,3.39674106]
[1752551690090,5.303,2944.1,2943.8,4.39713168]
[1752551690291,5.303,2944.1,2943.8,4.43110137]
[1752551690499,5.303,2944.1,2943.9,3.39684197]
[1752551690707,0.1696,2944.4,2944.3,3.39639303]
[1752551690878,5.4696,2944.4,2944.0,0.03396739]
[1752551691079,5.4696,2944.4,2944.2,3.39650838]
[1752551691479,5.4696,2944.4,2944.2,3.39650586]
[1752551691676,5.4696,2944.4,2943.8,1.0002]
[1752551691901,0.55,2944.7,2944.4,0.7953]
[1752551692101,0.55,2944.5,2944.4,0.7953]
[1752551692480,0.55,2944.5,2944.1,0.7953]
[1752551692699,5.299,2944.4,2944.1,0.7953]
[1752551692897,5.299,2944.4,2944.3,3.39639303]
[1752551693286,1.2004,2945.2,2944.5,3.39616233]
[1752551693480,1.2004,2945.2,2944.4,0.8255]
[1752551693481,10.1696,2945.0,2944.4,0.8255]
[1752551693812,10.1696,2945.0,2944.6,3.39597529]
[1752551694122,10.6193,2945.0,2944.6,3.39597529]
[1752551694497,0.4497,2944.9,2944.6,3.39597529]
[1752551694680,5.296,2944.8,2944.5,3.56569782]
[1752551695285,0.55,2944.7,2944.2,4.22198186]
[1752551695505,5.294,2944.6,2944.3,0.002]
[1752551695709,0.55,2944.5,2944.3,0.002]
[1752551695897,5.294,2944.4,2944.3,0.002]
[1752551696093,5.844,2944.4,2944.3,0.002]
[1752551696322,10.65896669,2944.4,2944.3,0.002]
[1752551697086,7.26268902,2944.4,2944.3,0.002]
[1752551697282,10.65896669,2944.4,2944.3,0.002]
[1752551697923,20.65896669,2944.4,2944.3,0.002]
[1752551698587,21.47576669,2944.4,2944.3,0.002]
[1752551700434,21.47276669,2944.4,2944.3,0.002]
[1752551700633,10.55,2944.4,2944.3,0.002]
[1752551700932,19.68397767,2944.4,2944.3,0.002]
[1752551701992,15.838,2944.4,2944.3,0.002]
[1752551702418,5.287,2944.4,2944.3,0.8001]
[1752551702707,0.1696,2944.7,2944.3,4.19639327]
[1752551702903,5.287,2944.6,2944.3,4.19649138]
[1752551703104,0.1696,2944.7,2944.3,4.19649138]
[1752551703105,0.1696,2944.7,2944.3,0.8001]
[1752551703307,5.286,2944.6,2944.4,3.39619447]
[1752551703511,5.286,2944.6,2944.3,4.19644569]
[1752551704363,0.1696,2944.7,2944.6,3.396047]
[1752551704536,5.287,2944.7,2944.5,3.56570655]
[1752551705391,5.287,2944.7,2944.5,0.1696]
[1752551705590,5.287,2944.7,2944.3,4.19640932]
[1752551705802,5.4566,2944.7,2944.3,4.19640932]
[1752551706530,0.55,2944.6,2944.3,0.8001]
[1752551706742,10.55,2944.4,2944.3,0.002]
[1752551707035,13.94627767,2944.4,2944.3,0.002]
[1752551707549,14.39597767,2944.4,2944.3,0.002]
[1752551708139,6.0026,2944.4,2944.3,0.002]
[1752551708342,9.84857767,2944.4,2944.3,0.002]
[1752551708549,20.8567503,2944.4,2944.3,0.002]
[1752551710639,21.6146503,2944.4,2944.3,0.002]
[1752551712355,21.6156503,2944.4,2944.3,0.002]
[1752551712515,16.0036,2944.4,2944.3,0.002]
[1752551712716,19.83997767,2944.4,2944.3,0.002]
[1752551712912,16.4437,2944.4,2944.3,0.002]
[1752551713155,16.0036,2944.4,2944.3,0.002]
[1752551713654,10.1696,2944.4,2944.3,0.002]
[1752551713817,5.284,2944.4,2944.3,0.002]
[1752551714021,5.284,2944.4,2944.3,3.39839303]
[1752551714650,8.15,2945.0,2944.9,3.39570104]
[1752551714918,5.284,2945.0,2944.7,0.03395931]
[1752551715123,5.284,2945.0,2944.9,3.56530104]
[1752551715650,0.1696,2945.5,2944.9,0.9583]
[1752551715850,5.284,2945.4,2945.3,3.39516316]
[1752551716037,5.284,2945.4,2945.0,0.69611124]
[1752551716241,5.284,2945.4,2945.2,3.3953484]
[1752551716449,5.284,2945.4,2945.1,3.39541641]
[1752551717961,5.284,2945.4,2945.0,3.42953536]
[1752551718147,5.284,2945.4,2945.0,3.39557951]
[1752551718352,5.284,2945.4,2945.1,3.39543064]
[1752551719376,0.1696,2945.5,2945.2,4.15802952]
[1752551719635,5.283,2945.4,2945.3,3.56483987]
[1752551720162,0.001,2945.8,2945.7,3.39477883]
[1752551720463,5.284,2945.8,2945.7,3.39477883]
[1752551721068,0.8242,2947.2,2945.7,0.7169184]
[1752551721283,5.288,2947.1,2946.8,0.9323]
[1752551721426,13.39437324,2947.0,2946.4,0.7627]
[1752551721627,0.1696,2946.7,2946.1,0.9323]
[1752551721828,0.55,2946.5,2946.3,3.39407212]
[1752551722062,0.55,2946.5,2946.4,3.3939723]
[1752551722266,5.4586,2946.6,2946.3,3.39403547]
[1752551722470,5.291,2946.5,2946.3,3.39403547]
[1752551722826,5.291,2946.5,2946.4,3.3939723]
[1752551723030,5.29,2946.5,2946.4,3.3939723]
[1752551723554,5.288,2946.8,2946.4,0.1696]
[1752551723754,5.7281,2946.8,2946.4,3.56351162]
[1752551723951,5.288,2946.8,2946.4,3.56355655]
[1752551724170,5.288,2946.8,2946.4,0.1696]
[1752551724550,5.288,2946.8,2946.5,3.39378517]
[1752551725074,5.7281,2946.8,2946.4,0.1696]
[1752551725271,5.7281,2946.8,2946.4,3.56354618]
[1752551725774,0.1706,2947.0,2946.7,3.39362676]
[1752551725974,0.1706,2947.0,2946.5,3.42779568]
[1752551725975,5.29,2946.9,2946.5,3.39377428]
[1752551726474,5.287,2946.8,2946.5,3.39377428]
[1752551726776,5.287,2946.8,2946.6,3.39372956]
[1752551726971,5.287,2946.7,2946.6,3.39372956]
[1752551727439,5.285,2946.7,2946.5,3.39379116]
[1752551727638,5.285,2946.7,2946.6,0.1696]
[1752551728363,0.4411,2947.0,2946.6,3.56332426]
[1752551728564,0.4411,2947.0,2946.6,0.1696]
[1752551729845,0.001,2947.0,2946.7,0.7972]
[1752551730043,0.001,2947.0,2946.9,3.39339645]
[1752551730247,0.001,2947.0,2946.9,3.42733041]
[1752551730981,0.001,2947.0,2946.9,3.39339645]
[1752551731477,0.001,2947.0,2946.9,3.78859355]
[1752551731646,0.001,2947.0,2946.9,3.82252751]
[1752551732367,5.27760456,2947.3,2947.2,3.39305103]
[1752551733165,0.001,2947.5,2947.4,3.39282079]
[1752551733979,0.001,2947.5,2947.4,3.42674899]
[1752551734166,0.001,2947.5,2947.4,4.1524583]
[1752551734972,0.001,2947.5,2947.4,4.1863865]
[1752551735343,0.001,2947.5,2947.4,4.1524583]
[1752551736145,0.001,2947.5,2947.4,4.1863865]
[1752551736547,0.001,2947.5,2947.4,4.1903865]
[1752551736747,0.001,2947.5,2947.4,4.1564583]
[1752551736989,0.001,2947.5,2947.4,4.1524583]
[1752551737406,0.001,2947.5,2947.4,4.1564583]
[1752551737572,0.001,2947.5,2947.4,4.9542865]
[1752551738129,0.4401,2948.6,2948.5,3.39155502]
[1752551738384,0.4401,2948.6,2948.0,5.279]
[1752551738589,0.4401,2948.6,2948.3,3.39176655]
[1752551738950,0.551,2948.7,2948.2,3.39184556]
[1752551739149,0.4401,2948.5,2948.2,3.39184556]
[1752551739393,0.4401,2948.5,2948.3,3.39171835]
[1752551739574,0.4401,2948.5,2948.4,3.39167005]
[1752551739773,0.001,2948.7,2948.6,3.39144]
[1752551740275,0.4411,2948.7,2948.4,3.39161012]
[1752551740471,0.4401,2948.6,2948.4,3.39161012]
[1752551740877,0.4401,2948.6,2948.5,3.39155502]
[1752551741293,0.001,2948.7,2948.5,3.39155502]
[1752551741492,0.4313,2948.7,2948.4,3.3916382]
[1752551741691,0.4313,2948.7,2948.3,3.39178386]
[1752551741878,0.001,2948.7,2948.6,3.39144]
[1752551743589,0.001,2948.7,2948.6,3.4253544]
[1752551743888,0.001,2948.7,2948.6,3.56424]
[1752551744889,0.001,2948.7,2948.6,3.39144]
[1752551746609,0.4313,2948.7,2948.5,3.39146585]
[1752551747108,0.4313,2948.7,2948.6,3.39144]
[1752551747667,0.4313,2948.7,2948.3,3.3917247]
[1752551747880,0.4303,2948.6,2948.4,3.39164011]
[1752551748100,0.001,2948.7,2948.4,3.39164011]
[1752551748101,0.4303,2948.5,2948.4,3.39164011]
[1752551748578,0.4303,2948.5,2948.2,3.39185852]
[1752551748779,0.001,2948.7,2948.2,6.35047716]
[1752551748978,0.4313,2948.7,2948.4,3.39159182]
[1752551749207,0.4313,2948.7,2948.5,3.39155502]
[1752551749501,0.001,2948.7,2948.6,3.39144]
[1752551751012,0.4313,2948.7,2948.6,3.39144]
[1752551751382,0.001,2948.7,2948.6,3.39144]
[1752551752369,0.001,2948.7,2948.6,4.06973852]
[1752551754335,0.001,2948.7,2948.6,4.10365292]
[1752551755039,0.001,2948.7,2948.6,4.27245292]
[1752551755238,0.001,2948.7,2948.6,3.5941544]
[1752551755533,0.001,2948.7,2948.6,3.56024]
[1752551755732,0.001,2948.7,2948.6,3.39144]
[1752551756821,0.4313,2948.7,2948.6,3.39144]
[1752551758115,0.001,2948.7,2948.6,3.39144]
[1752551758635,0.001,2948.7,2948.6,5.09021939]
[1752551759466,0.001,2948.7,2948.6,3.39144]
[1752551759829,0.001,2948.7,2948.6,4.21204]
[1752551760028,0.001,2948.7,2948.6,3.56024]
[1752551760227,0.4313,2948.7,2948.6,8.66644]
[1752551760732,0.4313,2948.7,2948.2,1.03955816]
[1752551760934,0.6001,2948.7,2948.4,3.39161778]
[1752551761325,0.4303,2948.6,2948.4,3.39161778]
[1752551761644,0.4303,2948.5,2948.4,3.39161778]
[1752551761947,0.1688,2948.6,2948.5,3.39155502]
[1752551762115,0.001,2948.7,2948.6,3.39144]
[1752551762316,0.4313,2948.7,2948.6,3.39144]
[1752551763044,0.001,2948.7,2948.6,3.39144]
[1752551763548,0.001,2948.7,2948.3,0.1688]
[1752551763709,0.4313,2948.7,2948.6,3.39144]
[1752551764754,0.4313,2948.7,2948.5,3.39150101]
[1752551764951,0.4303,2948.6,2948.5,3.39155502]
[1752551765250,0.4303,2948.6,2948.4,3.39158847]
[1752551765450,0.4303,2948.6,2948.3,13.59554261]
[1752551765955,0.4303,2948.6,2948.3,10.2038]
[1752551766966,3.82182707,2948.6,2948.3,10.2038]
[1752551767135,0.4303,2948.5,2948.3,4.76]
[1752551767334,3.39167005,2948.4,2948.3,4.76]
[1752551767546,3.82197005,2948.4,2948.3,4.76]
[1752551767752,0.4303,2948.4,2948.3,4.76]
[1752551768670,3.82197005,2948.4,2948.3,4.76]
[1752551768870,0.4303,2948.4,2948.3,4.76]
[1752551769672,0.1688,2948.6,2948.3,4.76]
[1752551769873,0.001,2948.7,2948.4,0.0339167]
[1752551770169,0.001,2948.7,2948.3,4.32402858]
[1752551770170,0.4313,2948.7,2948.3,4.32402858]
[1752551770727,3.39165006,2948.5,2948.3,0.1688]
[1752551770933,0.4561,2948.4,2948.0,0.1696]
[1752551771149,4.14830014,2948.2,2947.5,3.39462775]
[1752551771344,3.3921852,2948.0,2947.6,0.1696]
[1752551771653,3.3921852,2948.0,2947.5,0.002]
[1752551771654,5.274,2948.0,2947.5,0.002]
[1752551771853,0.6257,2947.9,2947.5,0.002]
[1752551772059,3.39241815,2947.8,2947.5,0.002]
[1752551772233,3.39251141,2947.7,2947.5,0.002]
[1752551772438,3.39259058,2947.6,2947.5,0.002]
[1752551772638,0.4561,2947.6,2947.5,0.002]
[1752551773481,0.1696,2947.7,2947.5,0.002]
[1752551773684,1.2361,2947.9,2947.5,0.002]
[1752551773970,0.6257,2947.9,2947.7,3.39245971]
[1752551774170,5.274,2948.0,2947.7,3.39237395]
[1752551774372,5.274,2948.0,2947.9,3.39224532]
[1752551774674,5.274,2948.0,2947.8,4.20461705]
[1752551774969,0.7984,2948.4,2947.8,0.8123]
[1752551775170,5.4438,2948.4,2947.9,0.20352245]
[1752551775561,0.4561,2948.3,2948.0,3.39205914]
[1752551775870,0.4561,2948.3,2948.0,3.39206391]
[1752551776045,0.4561,2948.3,2948.1,3.39200248]
[1752551776246,0.4571,2948.7,2948.3,3.39168899]
[1752551776556,0.4571,2948.7,2947.8,6.0873]
[1752551776557,5.7311,2948.6,2948.2,0.1688]
[1752551776737,5.7311,2948.6,2948.3,3.39171643]
[1752551777459,5.7311,2948.6,2948.3,3.39178287]
[1752551777636,5.7311,2948.6,2948.2,3.56064783]
[1752551777834,5.7311,2948.6,2948.2,0.1688]
[1752551777835,0.4561,2948.5,2948.2,0.1688]
[1752551778069,0.4561,2948.4,2948.0,3.56167334]
[1752551778267,0.1688,2948.5,2948.0,3.56167334]
[1752551778268,0.4561,2948.3,2948.0,3.56167334]
[1752551778467,0.4561,2948.3,2948.0,0.1696]
[1752551778673,0.4561,2948.2,2948.0,0.1696]
[1752551778872,0.4561,2948.1,2947.9,3.3921719]
[1752551779046,5.275,2948.3,2947.7,3.5619737]
[1752551779047,0.4561,2948.0,2947.7,3.5619737]
[1752551779374,0.4561,2948.0,2947.8,3.39232385]
[1752551779536,0.4561,2948.0,2947.7,3.56206969]
[1752551779835,0.4561,2948.0,2947.8,3.39229813]
[1752551781576,0.4561,2948.0,2947.9,3.39224532]
[1752551782339,0.4561,2948.0,2947.8,3.39230712]
[1752551782540,0.4561,2948.0,2947.9,3.39224532]
[1752551783442,0.4561,2948.0,2947.7,0.1696]
[1752551784177,0.4561,2948.0,2947.8,3.39233579]
[1752551784494,0.4561,2948.0,2947.9,3.39224532]
[1752551785554,0.4561,2948.0,2947.7,3.561997]
[1752551785757,0.4561,2947.9,2947.7,0.1696]
[1752551786076,0.4561,2947.9,2947.8,3.39234203]
[1752551786284,0.4561,2948.1,2947.9,3.39213812]
[1752551786669,0.4561,2948.0,2947.9,3.39213812]
[1752551788081,0.1688,2948.2,2947.8,3.3923604]
[1752551788254,5.275,2948.3,2947.7,0.1696]
[1752551788255,5.275,2948.3,2948.1,3.39196326]
[1752551788580,5.275,2948.3,2948.2,3.39190014]
[1752551789159,5.7301,2948.4,2948.3,3.39178509]
[1752551789543,5.274,2948.4,2948.3,3.39178509]
[1752551790584,0.8291,2948.6,2948.4,3.39161665]
[1752551790798,5.4438,2948.7,2948.2,0.202719]
[1752551790996,0.4561,2948.6,2948.5,3.39155502]
[1752551791602,5.275,2948.7,2948.6,3.39144]
[1752551791805,0.001,2948.7,2948.6,4.18384]
[1752551792111,0.001,2948.7,2948.6,4.35264]
[1752551793812,0.001,2948.7,2948.6,4.3865544]
[1752551796680,0.001,2948.7,2948.6,4.3905544]
[1752551797479,1e-08,2948.7,2948.6,9.1505544]
[1752551797718,1e-08,2948.7,2948.6,9.11664]
[1752551797929,1e-08,2948.7,2948.6,9.11264]
[1752551798211,1e-08,2948.7,2948.6,14.38564]
[1752551799893,1e-08,2948.7,2948.6,14.38464]
[1752551801010,1e-08,2948.7,2948.6,14.38864]
[1752551802216,0.4463,2950.0,2949.4,0.7906]
[1752551802427,0.4463,2950.0,2949.5,3.39034372]
[1752551802614,0.4463,2949.8,2949.5,3.39034372]
[1752551802819,0.4463,2949.8,2949.6,3.55907305]
[1752551803111,4.19177259,2950.1,2949.7,3.39017527]